Cogmind - Beta 13 @@@ ROGUE MODE // 2024.05.15 @ 14:25:48 Player: BionicBot Result: Destroyed by 2G-D38(R) with Subdweller Laser Performance ------------- Evolutions (0) 0 Regions Visited (2) 400 Robots Destroyed (26) 130 Value Destroyed (472) 472 Prototype IDs (3) 60 Alien Tech Used (0) 0 Bonus (0) 0 TOTAL SCORE: 1062 Bonus ------- None Cogmind --------- Core Integrity 0/250 Matter 177/300 Energy 106/125 System Corruption 0% Temperature Cool (6) Movement Rolling (95) Location -10/Subcaves Parts ------- > --- POWER (1) -------- Light Ion Engine > --- PROPULSION (2) --- Wheel Subdweller Monowheel > --- UTILITY (2) ------ Heat Sink Small Storage Unit > --- WEAPON (2) ------- Riot Gun Grenade Launcher > --- INVENTORY (8) ---- Wheel Heat Sink Visual Processing Unit Sensor Array Improved Terrain Scanner Terrain Scan Processor Seismic Detector Light Assault Rifle Peak State ------------ > --- POWER ------------ Light Ion Engine > --- PROPULSION ------- Wheel Subdweller Monowheel > --- UTILITY ---------- Heat Sink Small Storage Unit > --- WEAPON ----------- Riot Gun Grenade Launcher > --- INVENTORY -------- Wheel Heat Sink Visual Processing Unit Sensor Array Improved Terrain Scanner Terrain Scan Processor Seismic Detector Light Assault Rifle [Rating: 11] Favorites ----------- Power Light Ion Engine Engine Light Ion Engine Propulsion Light Treads Treads Light Treads Wheel Wheel Utility Small Storage Unit Device Heat Sink Storage Small Storage Unit Weapon Light Assault Rifle Energy Gun Riot Gun Ballistic Gun Light Assault Rifle Launcher Grenade Launcher Build | -11 -10 -10 ------- Run | Yrd Mat Sub Slots Evolved . | . . . Power . | . . . Propulsion . | . . . Utility . | . . . Weapon . | . . . Parts Attached 24 | 7 2 15 Power 2 | 1 . 1 Engine 2 | 1 . 1 Core . | . . . Reactor . | . . . Propulsion 7 | 2 1 4 Treads 2 | 2 . . Leg . | . . . Wheel 5 | . 1 4 Hover . | . . . Flight . | . . . Utility 4 | 2 1 1 Device 3 | 1 1 1 Storage 1 | 1 . . Processor . | . . . Hackware . | . . . Protection . | . . . Artifact . | . . . Weapon 11 | 2 . 9 Energy Gun 1 | . . 1 Energy Cannon . | . . . Ballistic Gun 6 | 2 . 4 Ballistic Cannon . | . . . Launcher 4 | . . 4 Special Weapon . | . . . Impact Weapon . | . . . Slashing Weapon . | . . . Piercing Weapon . | . . . Special Melee Weapon . | . . . Unidentified Prototypes . | . . . Parts Lost 5 | . 2 3 Power 1 | . . 1 Propulsion 2 | . 1 1 Utility 1 | . 1 . Weapon 1 | . . 1 Highest Loss Streak 2 | . 1 2 To Critical Strikes . | . . . Average Slot Usage (%) 95 | . 95 94 Engine 13 | . 14 13 Treads 17 | . 23 . Wheel 6 | . . 23 Device 13 | . 13 14 Storage 14 | . 14 14 Ballistic Gun 26 | . 28 21 Launcher 1 | . . 5 Naked Turns . | . . . Heaviest Build 15 | 11 11 15 Greatest Support 40 | 40 40 30 Greatest Overweight (x) 2 | 2 . . Average Overweight (x) . | . . . Largest Inventory Capacity 8 | 8 8 8 Average Capacity 7 | 7 8 8 Most Carried 8 | 2 7 8 Average Carried 4 | 1 4 6 Final Capacity 8 | 8 8 8 Final Carried 8 | 2 7 8 Class Distribution -------------------- 97% | Mutant Dominant Class ---------------- Mutant | -10/Materials Mutant | -10/Subcaves Resources | -11 -10 -10 ----------- Run | Yrd Mat Sub Matter Collected 619 | 296 173 150 Remotely 136 | 104 32 . Salvage Created 850 | 102 568 180 Parts 68 | 7 49 12 Haulers Intercepted 1 | . 1 . Recyclers Shooed . | . . . Parts Field Recycled . | . . . Retrieved Matter . | . . . Parts Self-Destructed 8 | . . 8 Prevented . | . . . Kills | -11 -10 -10 ------- Run | Yrd Mat Sub Combat Hostiles Destroyed 15 | . 9 6 Guns 12 | . 9 3 AOE 3 | . . 3 Classes Destroyed 11 | 2 6 3 Worker 1 | . 1 . Builder 2 | . 2 . Tunneler 2 | 1 1 . Hauler 1 | . 1 . Recycler 2 | 1 1 . Watcher 3 | . 3 . Swarmer 7 | . 3 4 Grunt 6 | . 6 . Sentry 1 | . . 1 Cobbler 1 | . . 1 Subdweller 1 | . . 1 Best Kill Streak 4 | 1 3 4 Combat Bots Only 4 | . 3 4 Max Kills in Single Turn 2 | 1 1 2 Gunslinging . | . . . Exploded 2 | . . 2 Melee . | . . . Uniques/NPCs Destroyed . | . . . Combat | -11 -10 -10 -------- Run | Yrd Mat Sub Hostile Shots Fired 107 | . 62 45 Missed 29 | . 15 14 Damage Taken 900 | . 586 314 Core 253 | . 122 131 Absorbed by Shields . | . . . Core Remaining (%) 100 | 100 . . Volleys Fired 121 | 13 81 27 Largest 2 | 2 2 2 Hottest 80 | 40 40 80 Shots Fired 237 | 26 162 49 Gun 227 | 26 162 39 Cannon . | . . . Launcher 10 | . . 10 Special . | . . . Kinetic 226 | 26 162 38 Thermal . | . . . Explosive 10 | . . 10 Electromagnetic 1 | . . 1 Robot Hit Streak 9 | 5 9 4 Robot Miss Streak 5 | 2 5 5 Penetration Max . | . . . Secondary Targets . | . . . Shots Hit Robots 128 | 18 93 17 Core Hits 56 | 4 39 13 Critical Kills . | . . . Critical Parts Destroyed . | . . . Critical Strikes . | . . . Melee Attacks . | . . . Impact . | . . . Slashing . | . . . Piercing . | . . . Sneak Attacks . | . . . Combat Hostiles . | . . . Follow-up Attacks . | . . . Damage Inflicted 1213 | 144 748 321 Guns 1003 | 144 729 130 Cannons . | . . . Explosions 191 | . . 191 Melee . | . . . Ramming 19 | . 19 . Kinetic 1003 | 144 729 130 Thermal . | . . . Explosive 191 | . . 191 Electromagnetic . | . . . Impact . | . . . Slashing . | . . . Piercing . | . . . Highest Corruption . | . . . Average Corruption . | . . . Corruption Purged . | . . . Corruption Blocked . | . . . Overload Shots . | . . . Overflow Damage . | . . . Projectiles . | . . . Explosions . | . . . Melee . | . . . Knockbacks . | . . . Impact . | . . . Kinetic . | . . . Secondary . | . . . Self-Inflicted Damage 31 | . . 31 Shots 1 | . . 1 Rammed 4 | . 4 . Targets Rammed 4 | . 4 . Kicked . | . . . Crushed . | . . . Highest Temperature 43 | . 43 . Average Temperature 17 | . 17 . Received Heat Transfer 381 | . 324 57 Siege Activations . | . . . Robots Corrupted . | . . . Combat Hostiles . | . . . Parts Fried . | . . . Impact Corruptions . | . . . Robots Melted . | . . . Combat Hostiles . | . . . Parts Melted . | . . . Heat Transferred . | . . . Parts Sabotaged . | . . . Parts Stolen . | . . . Parts Stripped . | . . . Power Chain Reactions . | . . . Alert | -11 -10 -10 ------- Run | Yrd Mat Sub Peak Influence 188 | 10 188 . Initial 6 | . 6 . Average 66 | 4 73 . Maximum Alert Level . | . . . Low Security (%) 100 | 100 100 . Level 1 . | . . . Level 2 . | . . . Level 3 . | . . . Level 4 . | . . . Level 5 . | . . . High Security . | . . . Max Security . | . . . Squads Dispatched 1 | . 1 . Investigation 1 | . 1 . Extermination . | . . . Reinforcement . | . . . Assault . | . . . Garrison . | . . . Intercept . | . . . Searches Triggered . | . . . Construction Impeded . | . . . Haulers Reinforced . | . . . Active Scanning Responses . | . . . Cargo Convoy Interrupts . | . . . Stealth | -11 -10 -10 --------- Run | Yrd Mat Sub Distress Signals 1 | . 1 . Communications Jammed . | . . . Distress Signals . | . . . Times Spotted 42 | . 23 19 Peak Tracking Total 8 | . 8 5 Tactical Retreats 3 | . 1 2 Traps | -11 -10 -10 ------- Run | Yrd Mat Sub Traps Triggered . | . . . Indirectly . | . . . Trap Hack Attempts . | . . . Triggered . | . . . Disarmed . | . . . Reprogrammed . | . . . Reused . | . . . Traps Extracted . | . . . Installed . | . . . Triggered . | . . . Machines | -11 -10 -10 ---------- Run | Yrd Mat Sub Machines Disabled 2 | . . 2 Max in Single Turn 2 | . . 2 Machines Repaired . | . . . Machines Dismantled . | . . . Machines Sabotaged . | . . . Overloaded Fab Kills . | . . . Hacking | -11 -10 -10 --------- Run | Yrd Mat Sub Machines Accessed 6 | . 6 . Terminals 6 | . 6 . Fabricators . | . . . Repair Stations . | . . . Recycling Units . | . . . Scanalyzers . | . . . Garrison Access . | . . . Total Hacks 19 | . 19 . Successful 4 | . 4 . Failed 14 | . 14 . Catastrophic 6 | . 6 . Database Lockouts 1 | . 1 . Manual 11 | . 11 . Terminals 19 | . 19 . Fabricators . | . . . Repair Stations . | . . . Recycling Units . | . . . Scanalyzers . | . . . Garrison Access . | . . . Terminal Hacks 4 | . 4 . Prototype ID Bank 2 | . 2 . Level Access Points 1 | . 1 . Emergency Access Points 1 | . 1 . Fabricator Hacks . | . . . Repair Station Hacks . | . . . Recycling Unit Hacks . | . . . Scanalyzer . | . . . Garrison Access Hacks . | . . . Unauthorized Hacks . | . . . Terminals . | . . . Fabricators . | . . . Repair Stations . | . . . Recycling Units . | . . . Scanalyzers . | . . . Garrison Access . | . . . Data Cores Recovered . | . . . Used . | . . . Hacking Detections 5 | . 5 . Full Trace Events 5 | . 5 . Feedback Events . | . . . Feedback Blocked . | . . . Robot Schematics Acquired . | . . . Robots Built . | . . . Authchips . | . . . Time . | . . . Total Robot Build Rating . | . . . Part Schematics Acquired . | . . . Parts Built . | . . . Authchips . | . . . Time . | . . . Total Part Build Rating . | . . . Parts Repaired . | . . . Time . | . . . Parts Recycled . | . . . Recycled Matter . | . . . Retrieved Matter . | . . . Retrieved Components . | . . . Parts Scanalyzed . | . . . Part Schematics Acquired . | . . . Parts Damaged . | . . . Bothacking | -11 -10 -10 ------------ Run | Yrd Mat Sub Used RIF Installer . | . . . Robots Hacked . | . . . Non-combat . | . . . Combat . | . . . Robot Hacks Applied . | . . . Relay Couplers Released . | . . . Fabnet Peak Effective % . | . . . Robots Rewired . | . . . Allies Hacked . | . . . Hacks Repelled . | . . . Allies | -11 -10 -10 -------- Run | Yrd Mat Sub Total Allies . | . . . Largest Group . | . . . Highest-Rated Group . | . . . Highest-Rated Ally . | . . . Total Orders . | . . . Ally Attacks . | . . . Total Damage . | . . . Kills . | . . . Allies Corrupted . | . . . Allies Melted . | . . . Intel | -11 -10 -10 ------- Run | Yrd Mat Sub Robot Analysis Total . | . . . Derelict Logs Recovered 2 | . . 2 Drone Launches . | . . . Drone Recoveries . | . . . Exploration | -11 -10 -10 ------------- Run | Yrd Mat Sub Turns Passed 1485 | 114 1004 367 Spaces Moved 839 | 46 499 294 Core 7 | 7 . . Treads 497 | 39 458 . Legs . | . . . Wheels 335 | . 41 294 Hover . | . . . Flight . | . . . Fastest Speed 50 | 50 100 80 Average Speed 133 | 149 155 93 Slowest Speed 160 | 160 160 100 Overloaded Moves . | . . . Propulsion Burnouts . | . . . Robots Hopped . | . . . Cave-ins Triggered . | . . . Exploration Rate (%) 35 | 5 81 20 Regions Visited 2 Branch Regions 1 Pre-discovered Areas . | . . . Known Exits Taken . | . . . Unknown Exits Taken 2 | 1 1 . Scrap Searched . | . . . Spaces Dug 25 | . . 25 Terrain Destroyed 60 | . . 60 Melee . | . . . Projectile . | . . . AOE 60 | . . 60 Terrain Rammed . | . . . Walls Destroyed . | . . . Machines Disabled . | . . . Actions | -11 -10 -10 --------- Run | Yrd Mat Sub Total 1003 | 67 596 340 Wait 6 | . 6 . Move 837 | 45 498 294 Hop . | . . . Pick Up 7 | 2 5 . Fast Attach 12 | 7 2 3 Attach 2 | . . 2 Detach 2 | . . 2 Swap 10 | . . 10 Drop 2 | . . 2 Fire 121 | 13 81 27 Melee . | . . . Ram . | . . . Kick . | . . . Crush 4 | . 4 . Escape Stasis . | . . . Rewire . | . . . Trap . | . . . Miscellaneous . | . . . Route ------- -11/Scrapyard -10/Materials (discovered 5 exits: *Mat x3 / [*Min] / [*Sub]) -10/Subcaves (discovered 1 exit: [*Rec]) History --------- Turn | Location | Event 8 | -11/Scrapyard | Discovered new exit (range 16) 115 | -11/Scrapyard | Entered Materials 199 | -10/Materials | Discovered new exit (range 11) 313 | -10/Materials | Build established: Mutant 402 | -10/Materials | Discovered new exit (range 8) 771 | -10/Materials | Discovered new exit (range 5) 953 | -10/Materials | Discovered new exit (range 9) 1088 | -10/Materials | Identified exit to Materials 1088 | -10/Materials | Central database locked down 1119 | -10/Materials | Entered Subcaves 1131 | -10/Subcaves | Learned Materials terminal intel 1167 | -10/Subcaves | Core integrity fell below 50% 1183 | -10/Subcaves | Discovered new exit (range 10) 1206 | -10/Subcaves | Learned 4 Materials zone layouts 1265 | -10/Subcaves | A swath of the cavern ceiling suddenly collapsed 1283 | -10/Subcaves | Shifting Twisted Machinery released Sub. Monowheel 1389 | -10/Subcaves | Core integrity fell below 20% 1470 | -10/Subcaves | Shifting Twisted Machinery released Riot Gun 1486 | -10/Subcaves | Destroyed by 2G-D38(R) with Subdweller Laser Last Messages --------------- 01236_ U2-U1R(O) destroyed. 01245_ Acquired 51 matter. 01247_ Subatomizers dissect the Ion Engine. 01247_ Acquired Wheel. 01252_ Dropped Com. Wheel. A swath of the cavern ceiling suddenly collapses. 01272_ Subatomizers dissect the Com. Wheel, destroying it. 01282_ Acquired 6 matter. Sub. Monowheel falls loose from the Twisted Machinery. 01283_ Acquired 5 matter. 01340_ Subatomizers dissect the Ion Engine. 01377_ The unstable cave ceiling collapses. 01390_ Y-45 Defender destroyed. 01395_ Imp. Ion Engine fries itself beyond repair. 01396_ The unstable cave ceiling collapses. 01397_ Acquired 52 matter. 01407_ Lgt. Treads fries itself beyond repair. Riot Gun falls loose from the Twisted Machinery. 01478_ Dropped Lgt. Assault Rifle. 01479_ Acquired Riot Gun. Map ----- +----------------------------------------------------+ | ?????????????????????????## """ ###### # | | ???????????????????????### ## ## ## | | ??????????????????????## ## #? | | ????????????????????### ###### ## # ## | | ??????????????????### ##???## ### ### # | | ?????????????????## ####?# ##?## # | | ?????????????????# #### ##???##### # | | ?????????????????### #### #???????#### | | ???????????????????#### ##?#### #?????????? | | ??????????????????????# ##????# #????????? | | ??????????????????????## ##????##????????? | | ???????????????????????#### #??????????????? | | ??????????????????????????## ####?????????????? | | ??????????????????????####?# ##? ##????????????? | | ??????????????????????# ### ### #????????????? | | ??????????????????????# ## #?????????????? | | ???????????????????????# ##????????????? | | ???????????????????????## "#????????????? | | ??????????????????????### ## #????????????? | | ?????????????????????## " ##?###????????????? | | ????????????????????## " ##?????????????????? | | ???????????????"???## " " " ##??????##??????????? | | ???????????????" ###""## " ####?? ##?????????? | | ??????????????"" """"### " ##""" #?????????? | | ??????????????" """" "## " " " #?????????? | | ????????????#"""" """" @ " """"" #??????????? | | ????????????"""" " """" ???????????? | | ???????????? """"" [ " " ######????????????? | | ??????????????##"""" " #?????????????????? | | ???????????????## "" " "## ##?????????????????? | | ????????????????## """""### #?????????????????? | | ?????????????????# """""#? ????????????????? | | ?????????????????# """"""? ???????????????? | | ?????????????????# """" " R ??????????????? | | ?????????????????# ???# ### ????????????? | | ????????????????? ??????## #??# ????????????? | | ????????????????? ????????## ##??? ????????????? | | ???????????????? ??????????##??????????????????? | | ???????????????? ???????????????????????????????? | | ??????????????? ????????????????????????????????? | | ?????????????????????????????????????????????????? | | ?????????????????????????????????????????????????? | | ?????????????????????????????????????????????????? | | ?????????????????????????????????????????????????? | | ?????????????????????????????????????????????????? | | ?????????????????????????????????????????????????? | | ?????????????????????????????????????????????????? | | ?????????????????????????????????????????????????? | | ?????????????????????????????????????????????????? | | ?????????????????????????????????????????????????? | +----------------------------------------------------+ Best States ------------- Heat Dissipation 35 Energy Generation 10 Energy Capacity 125 Matter Stores 300 Matter Capacity 300 Sight Range 16 Terrain Scan Density 10 Evasion (%) 44 Recoil Reduction 2 Item Schematics ----------------- None Robot Schematics ------------------ None Fabricated ------------ Nothing Alien Tech Used ----------------- None Achievements -------------- None Challenges ------------ None Game ------ Seed SwarmQuantumDoomcannon Manual? 0 Play Time 00:14:54 Cumulative 77.5 hours Start 2024.05.15 @ 14:08:15 End 2024.05.15 @ 14:25:48 Sessions 1 Manual Loads 0 Difficulty Rogue Special Mode None Game No. 61 Rogue 61 Adventurer 0 Explorer 0 Win Type - Total 1 Types 1/0/0/0/0/0/0/0/0 Lore% 18 Gallery% 43 Achievement% 37 Wizard Run 0 Options --------- Layout 0 ASCII 0 Keyboard 1 Movement Numpad Keybinds 0 Fullscreen 2 Font 18/SmallcapsGlow Map View 76x50 Zoom Use 0% Tactical HUD 1 Map Filters NONE Filters NONE Steam 1 RUN: 0764fed7-e4a5-4b90-988b-3c8ac307cd05